fUST/lending_fUST_20241226
["ID","MTS","AMOUNT","RATE_DAILY","PERIOD"]
[346657186,1735155038171,-500.0,0.00011375,2]
[346657188,1735155038179,-190.59,0.00011375,2]
[346657190,1735155038189,-747.99,0.00011375,2]
[346657192,1735155038199,-1164.01,0.00011375,2]
[346657194,1735155038208,-500.0,0.00011375,2]
[346657196,1735155038218,-500.0,0.00011375,2]
[346657197,1735155038227,-539.18,0.00011375,2]
[346657198,1735155038237,-2141.2,0.00011375,2]
[346657199,1735155038246,-500.0,0.00011375,2]
[346657200,1735155038256,-150.47,0.00011375,2]
[346657201,1735155038265,-500.0,0.00011375,2]
[346657202,1735155038274,-500.0,0.00011375,2]
[346657203,1735155038283,-1238.16,0.00011375,2]
[346657204,1735155038292,-500.0,0.00011649,2]
[346657205,1735155038301,-747.99,0.00011649,2]
[346657206,1735155038311,-1164.01,0.00011649,2]
[346657207,1735155038319,-500.0,0.00011649,2]
[346657208,1735155038328,-500.0,0.00011649,2]
[346657209,1735155038337,-539.18,0.00011649,2]
[346657210,1735155038346,-2141.2,0.00011649,2]
[346657211,1735155038356,-456.68,0.00011649,2]
[346657212,1735155038366,-592.51272411,0.00011649,2]
[346657213,1735155038376,-434.39,0.00011649,2]
[346657214,1735155038386,-1238.16,0.00011649,2]
[346657215,1735155038395,-500.0,0.00011767,2]
[346657216,1735155038404,-500.0,0.00011923,2]
[346657217,1735155038413,-747.99,0.00011923,2]
[346657218,1735155038422,-1164.01,0.00011923,2]
[346657219,1735155038432,-500.0,0.00011923,2]
[346657220,1735155038441,-500.0,0.00011923,2]
[346657221,1735155038450,-539.18,0.00011923,2]
[346657222,1735155038459,-2141.2,0.00011923,2]
[346657223,1735155038468,-1238.16,0.00011923,2]
[346657224,1735155038478,-500.0,0.00012196,2]
[346657225,1735155038487,-747.99,0.00012196,2]
[346657226,1735155038497,-1164.01,0.00012196,2]
[346657227,1735155038506,-500.0,0.00012196,2]
[346657228,1735155038515,-586.99,0.00012196,2]
[346657229,1735155038525,-539.18,0.00012196,2]
[346657230,1735155038534,-2141.2,0.00012196,2]
[346657231,1735155038544,-1238.16,0.00012196,2]
[346657232,1735155038553,-1000.0,0.00012315,2]
[346657233,1735155038563,-587.0,0.00012406,2]
[346657234,1735155038573,-587.0,0.00012413,2]
[346657235,1735155038582,-500.0,0.0001247,2]
[346657236,1735155038591,-747.99,0.0001247,2]
[346657237,1735155038600,-1164.01,0.0001247,2]
[346657238,1735155038609,-500.0,0.0001247,2]
[346657239,1735155038619,-539.18,0.0001247,2]
[346657240,1735155038628,-2141.2,0.0001247,2]
[346657241,1735155038640,-1238.16,0.0001247,2]
[346657242,1735155038651,-876.4,0.000126,2]
[346657243,1735155038662,-500.0,0.00012744,2]
[346657244,1735155038675,-747.99,0.00012744,2]
[346657245,1735155038687,-1164.01,0.00012744,2]
[346657246,1735155038701,-500.0,0.00012744,2]
[346657247,1735155038714,-539.18,0.00012744,2]
[346657248,1735155038726,-2141.2,0.00012744,2]
[346657249,1735155038739,-1238.16,0.00012744,2]
[346657250,1735155038751,-3335.00218917,0.00012989,2]
[346657251,1735155038762,-230.86560213,0.00013018,2]
[346657252,1735155038772,-747.99,0.00013018,2]
[346657253,1735155038784,-1164.01,0.00013018,2]
[346657254,1735155038796,-500.0,0.00013018,2]
[346657255,1735155038807,-539.18,0.00013018,2]
[346657256,1735155038819,-2141.2,0.00013018,2]
[346657257,1735155038830,-1238.16,0.00013018,2]
[346657258,1735155038843,-3708.98081294,0.000131,2]
[346657259,1735155038855,-170.89,0.00013137,2]
[346657260,1735155038867,-170.96336108,0.00013137,2]
[346657261,1735155038878,-766.472,0.000132,2]
[346657262,1735155038890,-747.99,0.00013292,2]
[346657263,1735155038901,-1164.01,0.00013292,2]
[346657264,1735155038913,-500.0,0.00013292,2]
[346657265,1735155038924,-539.18,0.00013292,2]
[346657266,1735155038936,-2141.2,0.00013292,2]
[346657267,1735155038947,-1238.16,0.00013292,2]
[346657268,1735155038958,-573.34628191,0.00013316,2]
[346657269,1735155038970,-747.99,0.00013566,2]
[346657270,1735155038981,-1164.01,0.00013566,2]
[346657271,1735155038993,-500.0,0.00013566,2]
[346657272,1735155039004,-539.18,0.00013566,2]
[346657273,1735155039015,-2141.2,0.00013566,2]
[346657274,1735155039025,-1238.16,0.00013566,2]
[346657275,1735155039036,-1230.829,0.00013618,2]
[346657276,1735155039048,-823.0,0.00013643,2]
[346657277,1735155039059,-159.0,0.00013654,2]
[346657278,1735155039071,-500.0,0.00013698,2]
[346657279,1735155039081,-1080.2129986,0.00013761,2]
[346657280,1735155039092,-747.99,0.0001384,2]
[346657281,1735155039103,-1164.01,0.0001384,2]
[346657282,1735155039113,-500.0,0.0001384,2]
[346657283,1735155039123,-539.18,0.0001384,2]
[346657284,1735155039133,-2141.2,0.0001384,2]
[346657285,1735155039144,-1238.16,0.0001384,2]
[346657286,1735155039155,-151.0,0.00013899,2]
[346657287,1735155039166,-5138.11336075,0.000139,2]
[346657322,1735155040345,-27335.00160457,0.000139,2]
[346657325,1735155040356,-3969.7197189,0.000139,2]
[346657327,1735155040368,-162.18624056,0.00013973,2]
[346657329,1735155040379,-500.0,0.00013973,2]
[346657331,1735155040391,-326.07079273,0.00013973,2]
[346657333,1735155040403,-536.52867087,0.00013973,2]
[346657336,1735155040415,-500.0,0.00013973,2]
[346657338,1735155040425,-500.0,0.00013973,2]
[346657340,1735155040437,-400.0,0.00013973,2]
[346657342,1735155040448,-11745.38142848,0.00014,2]
[346657344,1735155040458,-47048.74639351,0.00014,2]
[346657347,1735155040471,-346.17140087,0.00014,2]
[346657349,1735155040483,-729.75,0.00014,2]
[346657362,1735155040593,-2706.80410819,0.00014,2]
[346657364,1735155040606,-2922.0,0.00014,2]
[346657366,1735155040617,-495.44,0.00014,2]
[346657369,1735155040631,-323.4384803,0.00014,2]
[346657371,1735155040644,-1455.86822617,0.00014,2]
[346657373,1735155040660,-2004.21328918,0.00014,2]
[346657376,1735155040672,-526.6,0.00014,2]
[346657562,1735155044259,-163.31038481,0.000129,2]
[346657564,1735155044270,-2079.15991932,0.00014,2]
[346657574,1735155044379,-23490.76285695,0.00014,2]
[346657575,1735155044392,-3536.93242851,0.00014,2]
[346657576,1735155044404,-1524.32231163,0.00014,2]
[346657631,1735155046335,-29599.00592296,0.00014,2]
[346657633,1735155046347,-24181.91801593,0.00014,2]
[346657714,1735156090776,75760.6875802,0.00023,120]
[346657731,1735156232514,-300.0,0.00011811,2]
[346657732,1735156232524,-186.95366632,0.00011811,2]
[346657733,1735156232535,-113.04633368,0.00011811,2]
[346657735,1735156232545,-3515.24624767,0.00011812,2]
[346657743,1735156238221,-7545.44466278,0.00011812,2]
[346657795,1735156240520,-1138.17109359,0.00011812,2]
[346657979,1735156246330,-5340.94999999,0.00011812,2]
[346657991,1735156246440,-7360.18799597,0.00011812,2]
[346657993,1735156246451,-1249.04,0.00011922,2]
[346657995,1735156246461,-1249.04,0.00012196,2]
[346657997,1735156246470,-500.0,0.00012469,2]
[346657999,1735156246480,-722.26,0.00012469,2]
[346658001,1735156246489,-1249.04,0.0001247,2]
[346658003,1735156246498,-679.0,0.00012599,2]
[346658006,1735156246507,-500.0,0.00012599,2]
[346658008,1735156246517,-500.0,0.00012599,2]
[346658010,1735156246526,-788.76,0.000126,2]
[346658012,1735156246535,-500.0,0.00012743,2]
[346658014,1735156246544,-722.26,0.00012743,2]
[346658016,1735156246554,-1249.04,0.00012744,2]
[346658017,1735156246563,-679.0,0.00012873,2]
[346658020,1735156246572,-500.0,0.00012873,2]
[346658021,1735156246582,-500.0,0.00012873,2]
[346658023,1735156246591,-420.0,0.00012969,2]
[346658025,1735156246601,-500.0,0.00013017,2]
[346658027,1735156246610,-722.26,0.00013017,2]
[346658030,1735156246619,-1249.04,0.00013018,2]
[346658032,1735156246629,-679.0,0.00013147,2]
[346658033,1735156246638,-500.0,0.00013147,2]
[346658036,1735156246648,-500.0,0.00013147,2]
[346658038,1735156246657,-170.89,0.00013237,2]
[346658040,1735156246667,-500.0,0.00013291,2]
[346658042,1735156246676,-722.26,0.00013291,2]
[346658044,1735156246685,-1249.04,0.00013292,2]
[346658046,1735156246694,-734.284,0.000133,2]
[346658048,1735156246706,-180.25905462,0.0001342,2]
[346658050,1735156246715,-679.0,0.00013421,2]
[346658052,1735156246725,-500.0,0.00013421,2]
[346658054,1735156246734,-500.0,0.00013421,2]
[346658056,1735156246744,-500.0,0.00013565,2]
[346658058,1735156246753,-722.26,0.00013565,2]
[346658060,1735156246763,-1249.04,0.00013566,2]
[346658062,1735156246772,-679.0,0.00013695,2]
[346658064,1735156246781,-500.0,0.00013695,2]
[346658066,1735156246790,-500.0,0.00013695,2]
[346658068,1735156246800,-500.0,0.00013839,2]
[346658070,1735156246809,-722.26,0.00013839,2]
[346658072,1735156246819,-1249.04,0.0001384,2]
[346658074,1735156246828,-540.1064993,0.00013859,2]
[346658076,1735156246837,-2759.41355185,0.000139,2]
[346658078,1735156246849,-14420.11477208,0.000139,2]
[346658312,1735157285210,7162.35886769,0.00018271,120]
[346658332,1735157432509,-2385.55301175,0.00012418,2]
[346658333,1735157432519,-300.0,0.00012463,2]
[346658334,1735157432528,-300.0,0.00012463,2]
[346658335,1735157432537,-14772.3962621,0.00012464,2]
[346658336,1735157432548,-709.88,0.000126,2]
[346658337,1735157432557,-3001.50197025,0.00013001,2]
[346658338,1735157432567,-721.257,0.000133,2]
[346658339,1735157432576,-2455.97747705,0.00013408,2]
[346658340,1735157432585,-541.69,0.00013544,2]
[346658341,1735157432595,-420.0,0.00013675,2]
[346658342,1735157432604,-170.891,0.00013694,2]
[346658343,1735157432613,-832.69,0.00013694,2]
[346658344,1735157432623,-500.0,0.00013694,2]
[346658345,1735157432632,-163.31038481,0.000138,2]
[346658346,1735157432642,-541.69,0.00013818,2]
[346658347,1735157432651,-270.0532496,0.00013859,2]
[346658348,1735157432660,-408.99286817,0.00013899,2]
[346658349,1735157432670,-591.77680461,0.00013899,2]
[346658350,1735157432679,-537.55,0.00013899,2]
[346658351,1735157432689,-500.0,0.00013899,2]
[346658352,1735157432698,-500.0,0.00013899,2]
[346658353,1735157432708,-204.90662011,0.000139,2]
[346658354,1735157432720,-2458.69028098,0.000139,2]
[346658355,1735157432736,-1535.19275596,0.000139,2]
[346658356,1735157432747,-506.33737312,0.000139,2]
[346658381,1735157438439,-10000.0,0.000139,2]
[346658382,1735157438451,-1591.13700658,0.000139,2]
[346658383,1735157438467,-6250.72851847,0.000139,2]
[346658487,1735157440630,-4603.92471677,0.000139,2]
[346658488,1735157440644,-5322.19769333,0.000139,2]
[346658489,1735157440654,-465.21206229,0.00013943,2]
[346658490,1735157440663,-832.69,0.00013968,2]
[346658491,1735157440672,-500.0,0.00013968,2]
[346658492,1735157440681,-400.0,0.00013973,2]
[346658493,1735157440691,-151.0,0.00013999,2]
[346658494,1735157440700,-8328.51320945,0.00014,2]
[346658495,1735157440713,-4022.83201497,0.00014,2]
[346658496,1735157440724,-73667.8489218,0.00014,2]
[346658497,1735157440739,-152157.53900602,0.00014,2]
[346658544,1735157443615,-100006.7253,0.00014,2]
[346658662,1735157444767,-326760.81562501,0.00014,2]
[346658664,1735157444777,-5872.69071424,0.00014,2]
[346658666,1735157444787,-139291.73701802,0.00014,4]
[346658747,1735157446457,-4352.43159084,0.00014,4]
[346658754,1735157446511,-24876.22833333,0.00014,4]
[346658756,1735157446523,-11374.3794396,0.00014,4]
[346658759,1735157446535,-500.0,0.00014,4]
[346658763,1735157446564,-1401.74951982,0.00014,4]
[346658865,1735158506525,275.29357862,0.0001,2]
[346658898,1735158635987,-249.973889,0.00012077,2]
[346658926,1735158638513,-359.43924331,0.00012077,2]
[346658928,1735158638522,-300.0,0.00012177,2]
[346658930,1735158638532,-300.0,0.00012177,2]
[346658932,1735158638541,-500.0,0.00012178,2]
[346658935,1735158638550,-500.0,0.00012178,2]
[346658937,1735158638559,-500.0,0.00012178,2]
[346658939,1735158638568,-500.0,0.00012178,2]
[346658940,1735158638577,-2826.53358496,0.00012178,2]
[346658992,1735158639229,-324.47641504,0.00012178,2]
[346658993,1735158639239,-500.0,0.00012178,2]
[346658994,1735158639248,-67.38288342,0.00012178,2]
[346658995,1735158639259,-1031.36711658,0.00012178,2]
[346658996,1735158639268,-500.0,0.00012178,2]
[346658997,1735158639277,-418.95523688,0.00012178,2]
[346658998,1735158639287,-500.0,0.00012178,2]
[346658999,1735158639297,-500.0,0.00012178,2]
[346659000,1735158639306,-500.0,0.00012178,2]
[346659001,1735158639315,-500.0,0.00012178,2]
[346659003,1735158639324,-500.0,0.00012178,2]
[346659005,1735158639333,-500.0,0.00012178,2]
[346659007,1735158639343,-631.26,0.00012178,2]
[346659009,1735158639352,-1086.55,0.00012178,2]
[346659011,1735158639361,-500.0,0.00012178,2]
[346659013,1735158639370,-500.0,0.00012178,2]
[346659015,1735158639379,-500.0,0.00012178,2]
[346659017,1735158639388,-500.0,0.00012178,2]
[346659019,1735158639397,-500.0,0.00012178,2]
[346659021,1735158639406,-500.0,0.00012178,2]
[346659023,1735158639415,-500.0,0.00012178,2]
[346659025,1735158639424,-500.0,0.00012178,2]
[346659027,1735158639433,-500.0,0.00012178,2]
[346659029,1735158639442,-500.0,0.00012178,2]
[346659031,1735158639454,-500.0,0.00012178,2]
[346659033,1735158639463,-500.0,0.00012178,2]
[346659035,1735158639473,-500.0,0.00012178,2]
[346659037,1735158639482,-500.0,0.00012178,2]
[346659039,1735158639491,-500.0,0.00012178,2]
[346659041,1735158639500,-625.99,0.00012178,2]
[346659043,1735158639509,-500.0,0.00012178,2]
[346659045,1735158639519,-500.0,0.00012178,2]
[346659047,1735158639527,-500.0,0.00012178,2]
[346659049,1735158639537,-500.0,0.00012178,2]
[346659051,1735158639546,-500.0,0.00012178,2]
[346659053,1735158639555,-448.06264002,0.00012178,2]
[346659055,1735158639567,-51.93735998,0.00012178,2]
[346659057,1735158639576,-500.0,0.00012178,2]
[346659059,1735158639586,-500.0,0.00012178,2]
[346659061,1735158639595,-500.0,0.00012178,2]
[346659063,1735158639604,-500.0,0.00012178,2]
[346659065,1735158639614,-500.0,0.00012178,2]
[346659067,1735158639623,-465.26867159,0.00012178,2]
[346659069,1735158639635,-564.49423957,0.00012178,2]
[346659072,1735158639644,-500.0,0.00012178,2]
[346659074,1735158639654,-500.0,0.00012178,2]
[346659076,1735158639663,-500.0,0.00012178,2]
[346659077,1735158639672,-383.78635198,0.00012178,2]
[346659079,1735158639681,-500.0,0.00012178,2]
[346659081,1735158639691,-500.0,0.00012178,2]
[346659083,1735158639701,-24900.0,0.00012179,2]
[346659084,1735158639710,-1697.8080695,0.00012208,2]
[346659085,1735158639720,-500.0,0.00012452,2]
[346659086,1735158639730,-232.87959113,0.00012452,2]
[346659087,1735158639837,-500.0,0.00012452,2]
[346659088,1735158639848,-500.0,0.00012452,2]
[346659089,1735158639857,-3151.01,0.00012452,2]
[346659090,1735158639867,-500.0,0.00012452,2]
[346659091,1735158639877,-1098.75,0.00012452,2]
[346659092,1735158639887,-500.0,0.00012452,2]
[346659093,1735158639896,-500.0,0.00012452,2]
[346659094,1735158639905,-500.0,0.00012452,2]
[346659095,1735158639915,-500.0,0.00012452,2]
[346659096,1735158639924,-500.0,0.00012452,2]
[346659097,1735158639933,-500.0,0.00012452,2]
[346659098,1735158639943,-631.26,0.00012452,2]
[346659099,1735158639953,-1086.55,0.00012452,2]
[346659100,1735158639963,-500.0,0.00012452,2]
[346659101,1735158639972,-500.0,0.00012452,2]
[346659102,1735158639981,-500.0,0.00012452,2]
[346659103,1735158639990,-500.0,0.00012452,2]
[346659104,1735158639999,-500.0,0.00012452,2]
[346659105,1735158640008,-500.0,0.00012452,2]
[346659106,1735158640017,-500.0,0.00012452,2]
[346659107,1735158640026,-500.0,0.00012452,2]
[346659108,1735158640039,-500.0,0.00012452,2]
[346659109,1735158640049,-500.0,0.00012452,2]
[346659110,1735158640058,-500.0,0.00012452,2]
[346659111,1735158640067,-500.0,0.00012452,2]
[346659112,1735158640076,-500.0,0.00012452,2]
[346659113,1735158640085,-500.0,0.00012452,2]
[346659114,1735158640094,-625.99,0.00012452,2]
[346659116,1735158640103,-532.58,0.00012452,2]
[346659117,1735158640112,-500.0,0.00012452,2]
[346659118,1735158640122,-500.0,0.00012452,2]
[346659119,1735158640131,-500.0,0.00012452,2]
[346659120,1735158640140,-500.0,0.00012726,2]
[346659121,1735158640149,-500.0,0.00012726,2]
[346659122,1735158640158,-365.62,0.00012726,2]
[346659123,1735158640167,-3151.01,0.00012726,2]
[346659124,1735158640176,-500.0,0.00012726,2]
[346659125,1735158640185,-1098.75,0.00012726,2]
[346659126,1735158640196,-531.62,0.00012726,2]
[346659127,1735158640205,-500.0,0.00012726,2]
[346659128,1735158640214,-500.0,0.00012726,2]
[346659129,1735158640223,-500.0,0.00012726,2]
[346659130,1735158640234,-500.0,0.00012726,2]
[346659131,1735158640244,-631.26,0.00012726,2]
[346659132,1735158640254,-1086.55,0.00012726,2]
[346659133,1735158640264,-500.0,0.00012726,2]
[346659134,1735158640274,-500.0,0.00012726,2]
[346659135,1735158640286,-598.73,0.00012726,2]
[346659136,1735158640297,-500.0,0.00012726,2]
[346659137,1735158640307,-500.0,0.00012726,2]
[346659139,1735158640316,-500.0,0.00012726,2]
[346659141,1735158640325,-500.0,0.00012726,2]
[346659143,1735158640334,-500.0,0.00012726,2]
[346659145,1735158640343,-500.0,0.00012726,2]
[346659147,1735158640353,-500.0,0.00012726,2]
[346659148,1735158640362,-500.0,0.00012726,2]
[346659151,1735158640372,-500.0,0.00012726,2]
[346659152,1735158640382,-312.65719359,0.00012726,2]
[346659153,1735158640391,-500.0,0.00012726,2]
[346659154,1735158640401,-625.99,0.00012726,2]
[346659155,1735158640412,-576.31,0.00012726,2]
[346659156,1735158640422,-635.88,0.00012726,2]
[346659158,1735158640431,-500.0,0.00012726,2]
[346659160,1735158640440,-638.89,0.000129,2]
[346659162,1735158640451,-243.28129097,0.000129,2]
[346659164,1735158640460,-243.28129097,0.00012982,2]
[346659166,1735158640469,-500.0,0.00012999,2]
[346659168,1735158640479,-500.0,0.00012999,2]
[346659170,1735158640488,-500.0,0.00012999,2]
[346659172,1735158640499,-500.0,0.00012999,2]
[346659174,1735158640509,-500.0,0.00012999,2]
[346659176,1735158640518,-500.0,0.00012999,2]
[346659178,1735158640528,-500.0,0.00012999,2]
[346659180,1735158640538,-500.0,0.00012999,2]
[346659182,1735158640547,-500.0,0.00012999,2]
[346659184,1735158640557,-168.0,0.00012999,2]
[346659186,1735158640567,-500.0,0.00012999,2]
[346659188,1735158640576,-500.0,0.00012999,2]
[346659190,1735158640584,-500.0,0.00012999,2]
[346659193,1735158640595,-500.0,0.00012999,2]
[346659194,1735158640603,-500.0,0.00012999,2]
[346659196,1735158640614,-500.0,0.00012999,2]
[346659198,1735158640623,-500.0,0.00012999,2]
[346659201,1735158640637,-500.0,0.00012999,2]
[346659203,1735158640646,-500.0,0.00012999,2]
[346659205,1735158640655,-500.0,0.00012999,2]
[346659207,1735158640664,-500.0,0.00012999,2]
[346659208,1735158640674,-500.0,0.00012999,2]
[346659211,1735158640683,-500.0,0.00012999,2]
[346659212,1735158640693,-500.0,0.00012999,2]
[346659214,1735158640703,-500.0,0.00012999,2]
[346659216,1735158640712,-500.0,0.00012999,2]
[346659218,1735158640721,-500.0,0.00012999,2]
[346659220,1735158640730,-500.0,0.00012999,2]
[346659222,1735158640739,-500.0,0.00012999,2]
[346659224,1735158640748,-500.0,0.00012999,2]
[346659226,1735158640757,-500.0,0.00012999,2]
[346659228,1735158640767,-500.0,0.00012999,2]
[346659230,1735158640777,-500.0,0.00012999,2]
[346659232,1735158640786,-500.0,0.00012999,2]
[346659234,1735158640795,-500.0,0.00012999,2]
[346659237,1735158640806,-500.0,0.00012999,2]
[346659238,1735158640816,-500.0,0.00012999,2]
[346659241,1735158640825,-500.0,0.00012999,2]
[346659243,1735158640835,-500.0,0.00012999,2]
[346659244,1735158640844,-500.0,0.00012999,2]
[346659246,1735158640854,-500.0,0.00012999,2]
[346659249,1735158640863,-500.0,0.00012999,2]
[346659251,1735158640873,-500.0,0.00012999,2]
[346659253,1735158640882,-500.0,0.00012999,2]
[346659255,1735158640891,-500.0,0.00012999,2]
[346659256,1735158640900,-500.0,0.00012999,2]
[346659258,1735158640909,-500.0,0.00012999,2]
[346659260,1735158640918,-500.0,0.00012999,2]
[346659262,1735158640929,-500.0,0.00012999,2]
[346659264,1735158640938,-500.0,0.00012999,2]
[346659266,1735158640948,-500.0,0.00012999,2]
[346659268,1735158640957,-500.0,0.00012999,2]
[346659270,1735158640966,-500.0,0.00012999,2]
[346659272,1735158640976,-500.0,0.00012999,2]
[346659275,1735158640985,-500.0,0.00012999,2]
[346659276,1735158640995,-500.0,0.00012999,2]
[346659278,1735158641004,-500.0,0.00012999,2]
[346659280,1735158641013,-165.12547492,0.00012999,2]
[346659282,1735158641022,-500.0,0.00012999,2]
[346659284,1735158641032,-500.0,0.00012999,2]
[346659286,1735158641041,-500.0,0.00012999,2]
[346659288,1735158641051,-500.0,0.00012999,2]
[346659290,1735158641061,-500.0,0.00012999,2]
[346659292,1735158641070,-500.0,0.00012999,2]
[346659294,1735158641079,-500.0,0.00012999,2]
[346659296,1735158641088,-484.1804658,0.00012999,2]
[346659298,1735158641102,-15.8195342,0.00012999,2]
[346659299,1735158641111,-500.0,0.00012999,2]
[346659301,1735158641120,-500.0,0.00012999,2]
[346659303,1735158641129,-500.0,0.00012999,2]
[346659305,1735158641138,-500.0,0.00012999,2]
[346659307,1735158641147,-10.94767309,0.00012999,2]
[346659310,1735158641182,-489.05232691,0.00012999,2]
[346659311,1735158641202,-500.0,0.00012999,2]
[346659312,1735158641222,-500.0,0.00012999,2]
[346659313,1735158641245,-500.0,0.00012999,2]
[346659314,1735158641266,-500.0,0.00012999,2]
[346659315,1735158641287,-500.0,0.00012999,2]
[346659316,1735158641307,-500.0,0.00012999,2]
[346659317,1735158641328,-500.0,0.00012999,2]
[346659318,1735158641349,-500.0,0.00012999,2]
[346659319,1735158641359,-6988.09061725,0.00012999,2]
[346659330,1735158641489,-1665.55000003,0.00012999,2]
[346659382,1735158643592,-500.0,0.00012178,2]
[346659384,1735158643602,-101.63635246,0.00012178,2]
[346659402,1735158643764,-398.36364754,0.00012178,2]
[346659404,1735158643774,-406.45896381,0.00012452,2]
[346659677,1735158646657,-500.0,0.00012178,2]
[346659679,1735158646667,-217.98103619,0.00012452,2]
[346659681,1735158646677,-317.56585131,0.00012452,2]
[346660592,1735158865544,500.0,0.00018324,120]
[346660653,1735159831997,-300.0,0.00011382,2]
[346660655,1735159832007,-300.0,0.00011382,2]
[346660657,1735159832016,-3438.0281899,0.00011383,2]
[346660659,1735159832025,-3273.86832599,0.00011383,2]
[346660661,1735159832036,-633.58799141,0.00011383,2]
[346660663,1735159832045,-500.0,0.00012175,2]
[346660665,1735159832055,-500.0,0.00012175,2]
[346660667,1735159832064,-500.0,0.00012176,2]
[346660669,1735159832074,-267.07,0.00012176,2]
[346660670,1735159832083,-585.87511532,0.00012176,2]
[346660672,1735159832093,-500.0,0.00012176,2]
[346660674,1735159832102,-500.0,0.00012176,2]
[346660676,1735159832112,-158.20649199,0.00012176,2]
[346660678,1735159832121,-500.0,0.00012176,2]
[346660680,1735159832131,-430.46040128,0.00012176,2]
[346660682,1735159832148,-69.53959872,0.00012176,2]
[346660685,1735159832157,-366.98013027,0.00012176,2]
[346660686,1735159832167,-500.0,0.00012176,2]
[346660688,1735159832176,-177.26777101,0.00012176,2]
[346660689,1735159832188,-322.73222899,0.00012176,2]
[346660690,1735159832198,-500.0,0.00012176,2]
[346660691,1735159832207,-252.69786521,0.00012176,2]
[346660692,1735159832217,-508.96125754,0.00012176,2]
[346660694,1735159832227,-500.0,0.00012176,2]
[346660696,1735159832237,-500.0,0.00012176,2]
[346660698,1735159832246,-564.07,0.00012176,2]
[346660700,1735159832256,-2779.54,0.00012176,2]
[346660702,1735159832265,-500.0,0.00012176,2]
[346660703,1735159832276,-631.19,0.00012176,2]
[346660705,1735159832287,-982.24,0.00012176,2]
[346660706,1735159832296,-500.0,0.00012176,2]
[346660707,1735159832306,-500.0,0.00012176,2]
[346660709,1735159832315,-301.04072164,0.00012176,2]
[346660711,1735159832326,-354.2050969,0.00012176,2]
[346660712,1735159832335,-206.08,0.00012176,2]
[346660714,1735159832344,-500.0,0.00012176,2]
[346660716,1735159832355,-500.0,0.00012176,2]
[346660718,1735159832364,-500.0,0.00012176,2]
[346660720,1735159832374,-442.37,0.00012176,2]
[346660722,1735159832385,-500.0,0.00012176,2]
[346660724,1735159832395,-500.0,0.00012176,2]
[346660726,1735159832404,-552.35,0.00012176,2]
[346660728,1735159832413,-500.0,0.00012176,2]
[346660730,1735159832423,-1350.41,0.00012176,2]
[346660732,1735159832432,-500.0,0.00012176,2]
[346660734,1735159832441,-500.0,0.00012176,2]
[346660736,1735159832450,-500.0,0.00012176,2]
[346660738,1735159832459,-519.0,0.00012176,2]
[346660740,1735159832469,-500.0,0.00012176,2]
[346660742,1735159832478,-500.0,0.00012176,2]
[346660745,1735159832488,-500.0,0.00012176,2]
[346660747,1735159832497,-500.0,0.00012176,2]
[346660749,1735159832506,-500.0,0.00012176,2]
[346660751,1735159832516,-500.0,0.00012176,2]